bitfinex-derivatives/quotes_ETHF0:USTF0_20250626
["timestamp","ask_amount","ask_price","bid_price","bid_amount"]
[1750931586759,1.03910875,2466.2,2466.1,4.01834]
[1750931589055,1.84962875,2466.2,2466.1,4.01834]
[1750931589561,1.03910875,2466.2,2466.1,4.01834]
[1750931589765,1.84962875,2466.2,2466.1,10.0748]
[1750931590065,1.84962875,2466.2,2466.1,10.88535]
[1750931590472,1.84962875,2466.2,2466.1,4.01535]
[1750931590675,1.84962875,2466.2,2466.1,10.88235]
[1750931590973,1.84962875,2466.2,2466.1,10.0718]
[1750931591376,1.84962875,2466.2,2466.1,10.88235]
[1750931591569,1.84962875,2466.2,2466.1,3.2048]
[1750931591766,0.81055,2466.1,2466.0,0.7007]
[1750931592074,6.27332875,2466.1,2465.6,0.81069]
[1750931592264,0.81068,2465.8,2465.7,6.867]
[1750931592463,0.81068,2465.8,2465.3,3.35512]
[1750931592464,0.8107,2465.7,2465.6,7.67772]
[1750931592676,1.84980875,2465.7,2465.6,7.67772]
[1750931593974,1.84980875,2465.7,2465.6,6.867]
[1750931594183,1.03910875,2465.7,2465.3,2.6799]
[1750931594475,0.81076,2465.5,2465.4,6.867]
[1750931594675,1.84986875,2465.5,2465.4,6.867]
[1750931595075,1.03910875,2465.5,2465.4,7.67778]
[1750931595270,1.84985875,2465.5,2465.4,7.67778]
[1750931595470,1.03910875,2465.5,2465.4,7.67778]
[1750931595672,1.84985875,2465.5,2465.4,6.867]
[1750931596073,5.05765875,2465.5,2465.4,6.867]
[1750931596371,4.24690875,2465.5,2465.3,0.81081]
[1750931596576,1.73190875,2465.4,2465.1,7.5575]
[1750931596776,1.03910875,2465.3,2465.2,0.81084]
[1750931596976,1.03910875,2465.3,2465.2,0.81085]
[1750931597177,1.84992875,2465.3,2465.2,0.81085]
[1750931597378,1.03910875,2465.3,2465.2,7.67785]
[1750931597572,1.84992875,2465.3,2465.2,6.867]
[1750931597773,1.84992875,2465.3,2465.2,7.67785]
[1750931598579,1.03910875,2465.3,2465.2,7.67785]
[1750931599683,0.668,2465.7,2465.6,0.81072]
[1750931599881,3.2078,2465.9,2465.3,2.02705]
[1750931599882,1.03968477,2465.8,2465.3,2.027]
[1750931600073,1.03968477,2465.7,2465.6,0.81072]
[1750931600376,1.03969775,2465.8,2465.6,6.868]
[1750931600580,1.03969775,2465.8,2465.7,3.41571552]
[1750931600783,1.03969775,2465.8,2465.7,4.77631552]
[1750931600981,1.03969775,2465.8,2465.7,2.17128]
[1750931601976,1.03969775,2465.8,2465.7,7.67868]
[1750931602480,3.2078,2466.2,2465.7,7.67868]
[1750931602481,3.2078,2466.2,2466.1,0.81055]
[1750931602676,1.04014386,2466.2,2466.1,3.41558552]
[1750931602882,1.04014386,2466.2,2466.1,10.28358552]
[1750931603178,5.323,2466.7,2466.6,0.81039]
[1750931603380,1.76338659,2466.7,2466.6,0.81039]
[1750931603686,1.04028659,2466.7,2466.6,0.81039]
[1750931604172,1.85064659,2466.7,2466.5,6.868]
[1750931604483,3.29157659,2466.6,2466.5,6.868]
[1750931604980,1.04028659,2466.6,2466.5,7.67742]
[1750931605379,0.8103,2466.9,2466.7,0.81035]
[1750931605684,1.04018369,2466.8,2466.7,0.81035]
[1750931605885,3.2078,2467.0,2466.9,0.81029]
[1750931606087,4.24804543,2467.0,2466.9,0.81029]
[1750931606484,1.04024543,2467.0,2466.9,0.81029]
[1750931607379,0.6786,2467.2,2467.1,0.81022]
[1750931607574,1.71680531,2467.2,2467.0,0.81023]
[1750931607777,1.48879,2467.2,2467.0,0.81023]
[1750931608180,0.6786,2467.2,2467.1,0.81022]
[1750931608374,1.4888,2467.2,2467.0,0.81024]
[1750931608783,0.6786,2467.2,2467.1,0.81022]
[1750931608985,1.0377338,2467.2,2467.0,0.81024]
[1750931609186,0.81022,2467.2,2467.0,0.81024]
[1750931609587,0.81025,2467.1,2466.8,1.3498]
[1750931609783,2.0704,2467.3,2466.8,1.3498]
[1750931609988,2.88058,2467.3,2467.1,0.81022]
[1750931610388,0.81019,2467.2,2467.0,7.67723]
[1750931610588,2.88058,2467.3,2467.1,0.81022]
[1750931611083,1.0370017,2467.2,2467.1,0.81022]
[1750931611484,1.46578,2467.3,2467.1,0.81022]
[1750931611683,0.81019,2467.2,2467.0,7.67724]
[1750931611990,3.2078,2467.4,2467.0,6.867]
[1750931612193,1.03606211,2467.3,2467.1,0.6674]
[1750931612492,0.81019,2467.2,2467.1,7.5334]
[1750931612684,0.81019,2467.2,2467.1,1.47762]
[1750931612884,0.81019,2467.2,2467.1,0.6674]
[1750931613182,3.2078,2467.4,2467.3,0.81016]
[1750931613386,4.24353021,2467.4,2467.3,0.81016]
[1750931613986,3.2078,2467.7,2467.6,0.81006]
[1750931614190,4.24350427,2467.7,2467.6,0.81006]
[1750931614486,5.05353427,2467.7,2467.5,0.81007]
[1750931614689,4.01783,2467.7,2467.6,0.81006]
[1750931614888,5.05302225,2467.7,2467.5,1.4404]
[1750931615193,3.2078,2467.7,2467.6,0.81006]
[1750931615490,3.2078,2467.7,2467.6,1.49776]
[1750931617591,0.81003,2467.7,2467.6,0.6877]
[1750931617798,0.81008,2467.6,2467.5,0.81009]
[1750931617993,0.81008,2467.6,2467.5,7.65609]
[1750931618293,0.81013,2467.4,2467.3,6.846]
[1750931620996,2.13463,2467.4,2467.3,6.846]
[1750931621697,0.81019,2467.2,2467.1,3.2078]
[1750931621897,0.81019,2467.2,2467.1,10.86302]
[1750931622292,0.81019,2467.2,2467.1,10.0528]
[1750931622693,0.81019,2467.2,2467.1,10.86302]
[1750931623097,0.81019,2467.2,2467.1,4.01802]
[1750931623297,0.81022,2467.1,2467.0,8.31216]
[1750931623601,0.81022,2467.1,2467.0,7.5019]
[1750931624700,0.81022,2467.1,2467.0,6.845]
[1750931626204,2.02542,2467.3,2466.8,3.41283887]
[1750931626406,5.81032887,2466.9,2465.2,3.2078]
[1750931626605,3.2078,2465.8,2465.3,4.62956887]
[1750931626809,3.2078,2465.8,2465.5,2.60252887]
[1750931627008,3.2078,2465.8,2465.6,7.5315]
[1750931627307,0.81068,2465.7,2465.6,8.2114]
[1750931628305,4.01848,2465.8,2465.6,9.02212]
[1750931628506,0.81069,2465.7,2465.6,8.2114]
[1750931630010,4.01847,2465.8,2465.6,9.02211]
[1750931630210,2.02642,2466.1,2465.7,5.30523991]
[1750931630211,3.2078,2466.1,2465.7,5.30523991]
[1750931630507,3.2078,2466.1,2466.0,0.81059]
[1750931630713,4.01835,2466.1,2466.0,6.846]
[1750931633817,3.2078,2466.1,2466.0,7.65659]
[1750931634317,3.2078,2466.4,2466.3,0.81048]
[1750931635716,3.2078,2466.7,2466.6,0.81037]
[1750931635912,4.01816,2466.7,2466.6,7.65737]
[1750931636116,4.01816,2466.7,2466.6,6.847]
[1750931636810,3.2078,2466.7,2466.3,0.81046]
[1750931637116,3.2078,2466.7,2466.4,7.65744]
[1750931637317,3.2078,2466.7,2466.3,6.847]
[1750931637517,0.81044,2466.5,2466.4,0.81045]
[1750931637912,3.2078,2466.7,2466.3,6.847]
[1750931638118,4.01817,2466.7,2466.6,0.81039]
[1750931638321,3.2078,2466.7,2466.6,0.81039]
[1750931647624,3.2078,2467.0,2466.9,0.81029]
[1750931647829,4.24828692,2467.0,2466.9,7.63829]
[1750931648025,4.24828692,2467.0,2466.9,0.81029]
[1750931648329,4.24828692,2467.0,2466.9,7.63829]
[1750931650229,4.01787,2467.6,2467.5,0.81009]
[1750931650426,4.24890179,2467.6,2467.5,0.81009]
[1750931650925,0.81013,2467.5,2467.4,0.81011]
[1750931651126,2.14563,2467.5,2467.4,0.81011]
[1750931651431,0.81013,2467.4,2467.3,7.63714]
[1750931652127,0.81018,2467.3,2467.2,6.827]
[1750931652327,5.05977108,2467.3,2467.2,6.827]
[1750931653528,4.24959108,2467.3,2467.2,7.63716]
[1750931655036,5.05975108,2467.3,2467.2,7.63716]
[1750931655226,0.8103,2466.9,2466.8,0.8103]
[1750931655527,4.0181,2466.9,2466.8,0.8103]
[1750931655829,4.0181,2466.9,2466.4,0.6862]
[1750931655830,0.81037,2466.7,2466.6,7.63738]
[1750931656030,0.81039,2466.6,2466.5,0.8104]
[1750931656426,4.01819,2466.6,2466.5,0.8104]
[1750931656626,3.2078,2466.6,2466.5,0.8104]
[1750931656828,4.01819,2466.6,2466.5,0.8104]
[1750931657133,3.2078,2466.6,2466.5,0.8104]
[1750931657931,3.2078,2466.6,2466.3,6.827]
[1750931658133,2.81113,2466.5,2466.4,0.81043]
[1750931659036,3.85255124,2466.5,2466.4,0.81043]
[1750931659435,3.04212124,2466.5,2466.4,0.81043]
[1750931659640,3.85254124,2466.5,2466.4,0.81043]
[1750931661136,8.04212124,2466.5,2465.3,7.26186]
[1750931661338,4.01848,2465.8,2465.7,0.81067]
[1750931661532,0.81073,2465.6,2465.5,0.81072]
[1750931661935,1.85215124,2465.6,2465.5,0.81072]
[1750931662237,3.20818884,2465.6,2465.5,0.81072]
[1750931662641,1.04285884,2465.6,2465.5,0.81072]
[1750931663342,1.3831,2465.7,2465.6,0.81072]
[1750931663541,3.23616072,2465.7,2465.6,0.81072]
[1750931663744,2.42547072,2465.7,2465.6,0.81072]
[1750931664242,3.23616072,2465.7,2465.6,0.81072]
[1750931664442,2.42547072,2465.7,2465.6,0.81072]
[1750931664745,3.2078,2465.8,2465.7,0.81069]
[1750931664936,4.01837,2466.1,2466.0,0.81059]
[1750931665239,0.81061,2466.0,2465.8,6.828]
[1750931665537,6.3476165,2465.9,2465.4,6.828]
[1750931665743,0.81072,2465.7,2465.6,0.81072]
[1750931665947,5.06089659,2465.7,2465.6,0.81072]
[1750931666145,7.17619659,2465.7,2465.6,0.81072]
[1750931666445,6.13382,2465.7,2465.6,0.81073]
[1750931667939,6.13381,2465.7,2465.6,0.81073]
[1750931668134,5.3231,2465.7,2465.6,0.81073]
[1750931668336,6.13379,2465.7,2465.6,0.81073]
[1750931669042,3.2078,2465.7,2465.6,0.81073]
[1750931669341,0.81076,2465.6,2465.5,0.81073]
[1750931670535,2.22306,2465.6,2465.5,0.81073]
[1750931670738,3.2078,2465.7,2465.6,0.81073]
[1750931670943,0.81076,2465.6,2465.5,0.81075]
[1750931672753,5.43082,2465.7,2465.6,0.81073]
[1750931673249,0.81075,2465.6,2465.5,0.81073]
[1750931673443,2.11945,2465.6,2465.5,0.81073]
[1750931673748,4.01851,2465.7,2465.6,0.81073]
[1750931674043,3.2078,2465.7,2465.6,0.81073]
[1750931675348,4.01849,2465.7,2465.6,0.81073]
[1750931675553,5.32719,2465.7,2465.6,0.81073]
[1750931676458,0.81074,2465.6,2465.5,0.81073]
[1750931676640,0.81079,2465.5,2465.4,0.81077]
[1750931677548,2.14635,2465.6,2465.5,0.81076]
[1750931678651,1.3356,2465.6,2465.5,0.81076]
[1750931678843,0.81073,2465.6,2465.5,0.81076]
[1750931679347,0.81076,2465.6,2465.5,0.81073]
[1750931680455,0.81078,2465.5,2465.4,0.81076]
[1750931680845,0.81082,2465.4,2465.3,0.81081]
[1750931681045,4.71762,2465.4,2465.3,0.81081]
[1750931681246,5.75908234,2465.4,2465.3,0.81081]
[1750931682450,0.81085,2465.3,2465.2,0.81083]
[1750931682751,3.17001234,2465.3,2465.2,0.81083]
[1750931683746,0.81091,2465.1,2465.0,0.8109]
[1750931683956,3.2078,2465.1,2465.0,0.8109]
[1750931684247,4.24808906,2465.1,2465.0,0.8109]
[1750931684446,5.05897906,2465.1,2465.0,0.8109]
[1750931684649,5.56578906,2465.1,2465.0,0.8109]
[1750931685247,10.56578906,2465.1,2463.9,4.05641]
[1750931685551,3.2078,2464.5,2464.4,0.81112]
[1750931686551,3.2078,2464.5,2464.4,7.63512]
[1750931686754,3.2078,2465.1,2465.0,0.81092]
[1750931686957,4.24928347,2465.1,2465.0,0.81092]
[1750931688456,4.24928347,2465.1,2465.0,2.19832]
[1750931688958,1.04148347,2465.1,2465.0,2.19832]
[1750931689255,3.2078,2465.4,2465.3,0.81083]
[1750931689459,4.25087962,2465.4,2465.3,0.81083]
[1750931693248,4.25087962,2465.4,2465.3,1.50843]
[1750931694148,1.04307962,2465.4,2465.3,1.50843]
[1750931694758,1.04307962,2465.4,2465.3,2.92463]
[1750931698159,2.37620442,2465.9,2465.3,7.1138]
[1750931698354,0.81069,2465.8,2465.7,0.81067]
[1750931698965,0.81069,2465.8,2465.6,0.8107]
[1750931699169,0.81069,2465.8,2465.7,0.81069]
[1750931699667,0.81073,2465.7,2465.6,0.81071]
[1750931699969,0.81073,2465.7,2465.6,0.81073]
[1750931701067,2.25549,2465.8,2465.7,0.81069]
[1750931702960,1.49424,2465.9,2465.8,0.81066]
[1750931703165,4.01841,2466.0,2465.9,0.81063]
[1750931703463,3.2078,2466.0,2465.9,0.81063]
[1750931703859,4.0184,2466.0,2465.9,0.81063]
[1750931704057,3.2078,2466.0,2465.9,0.81063]
[1750931704260,1.46458,2466.1,2466.0,0.8106]
[1750931705062,0.654,2466.1,2465.7,0.7249]
[1750931705268,4.01843,2466.0,2465.9,0.81061]
[1750931706373,6.62394216,2466.0,2465.9,0.81061]
[1750931706870,0.81066,2465.9,2465.8,0.81063]
[1750931707272,0.81066,2465.8,2465.7,8.35858]
[1750931708869,0.81064,2465.9,2465.8,0.81063]
[1750931709076,0.81066,2465.8,2465.7,8.35857]
[1750931710477,1.03798358,2465.8,2465.7,8.35857]
[1750931711367,5.65461658,2466.4,2466.2,0.81053]
[1750931711368,4.01832,2466.3,2466.2,0.81053]
[1750931711580,0.81058,2466.2,2466.1,0.81054]
[1750931711767,0.81058,2466.2,2466.0,0.8106]
[1750931711768,0.8106,2466.1,2466.0,0.8106]
[1750931711963,1.84879685,2466.1,2466.0,6.813]
[1750931712271,3.21459685,2466.1,2466.0,6.813]
[1750931712976,0.81066,2465.8,2465.7,1.53557]
[1750931713178,1.84776208,2465.8,2465.7,0.81067]
[1750931715477,1.03710208,2465.8,2465.7,0.81067]
[1750931715879,0.81066,2465.8,2465.7,0.81067]
[1750931716173,0.81058,2466.1,2466.0,0.8106]
[1750931716378,1.84826136,2466.1,2466.0,0.8106]
[1750931716581,1.84824136,2466.1,2466.0,0.8106]
[1750931717683,1.03768136,2466.1,2466.0,0.8106]
[1750931718185,1.03768136,2466.1,2466.0,10.22911216]
[1750931718482,1.03768136,2466.1,2466.0,12.32981216]
[1750931719583,1.53102,2466.6,2466.5,0.81043]
[1750931719882,1.75998475,2466.6,2466.5,0.81043]
[1750931720280,2.57038475,2466.6,2466.5,0.81043]
[1750931720578,1.75998475,2466.6,2466.5,0.81043]
[1750931721279,1.03938475,2466.6,2466.5,0.81043]
[1750931722780,1.84978475,2466.6,2466.5,0.81043]
[1750931722979,0.81043,2466.5,2466.4,0.81043]
[1750931723183,1.84981475,2466.5,2466.4,7.62243]
[1750931723379,2.53521475,2466.5,2466.4,7.62243]
[1750931723590,0.81053,2466.3,2466.2,0.8105]
[1750931723780,1.84878143,2466.4,2466.3,0.8105]
[1750931724084,1.84876073,2466.4,2466.3,7.6225]
[1750931724484,3.21256073,2466.4,2466.3,7.6225]
[1750931725086,1.84876073,2466.4,2466.3,7.6225]
[1750931725590,1.84876073,2466.4,2466.3,0.8105]
[1750931725886,1.03827073,2466.4,2466.3,7.6225]
[1750931726687,4.01819,2466.7,2466.6,0.8104]
[1750931726688,3.2078,2466.7,2466.6,0.8104]
[1750931726887,1.03793422,2466.7,2466.6,0.8104]
[1750931728085,1.03793422,2466.7,2466.6,2.1619]
[1750931728683,1.03793422,2466.7,2466.6,2.8462]
[1750931728998,1.03793422,2466.7,2466.6,5.45171216]
[1750931729186,1.49344,2467.1,2467.0,0.81027]
[1750931729682,1.49243,2467.2,2467.1,0.81023]
[1750931730088,0.6822,2467.2,2467.1,0.81023]
[1750931730391,4.01799,2467.3,2467.2,0.8102]
[1750931731789,3.2078,2467.3,2467.2,0.8102]
[1750931732682,3.2078,2467.3,2467.2,7.6212]
[1750931732886,0.81023,2467.2,2467.1,7.62121]
[1750931733986,0.81023,2467.2,2467.1,6.811]
[1750931734189,0.81023,2467.2,2467.1,7.62123]
[1750931734388,0.81023,2467.2,2467.1,6.811]
[1750931735084,0.81027,2467.0,2466.9,1.49398]
[1750931735279,0.81033,2466.8,2466.7,3.2078]
[1750931735486,0.8104,2466.6,2466.5,1.49791]
[1750931735685,0.8104,2466.6,2466.5,8.30791]
[1750931735886,0.8104,2466.6,2466.5,1.49791]
[1750931736082,0.8104,2466.6,2466.5,8.30791]
[1750931736286,1.49409,2466.7,2466.6,0.8104]
[1750931739186,1.49409,2466.7,2466.1,3.2078]
[1750931739393,0.77888649,2466.2,2466.1,10.0028]
[1750931740686,1.50228649,2466.2,2466.1,10.0028]
[1750931741189,2.53237548,2466.2,2466.1,10.0028]
[1750931741386,2.53237548,2466.2,2466.1,10.81336]
[1750931741793,2.53237548,2466.2,2466.1,3.2078]
[1750931742095,2.53237548,2466.2,2466.1,10.0028]
[1750931742788,2.53237548,2466.2,2466.1,10.81336]
[1750931742994,2.56401899,2466.2,2466.1,10.81436]
[1750931743295,1.84061899,2466.2,2466.1,10.81436]
[1750931745392,0.81053,2466.2,2466.1,10.81436]
[1750931745902,1.51793,2466.3,2466.2,0.81053]
[1750931747199,0.81053,2466.2,2466.1,10.81434]
[1750931747788,0.81053,2466.2,2466.1,4.01834]
[1750931747988,0.81053,2466.2,2466.1,10.0038]
[1750931748195,2.16523,2466.2,2466.1,10.81436]
[1750931749000,0.81053,2466.2,2466.1,10.81436]
[1750931749199,0.81053,2466.2,2466.1,10.0038]
[1750931749398,0.81053,2466.2,2466.1,10.81436]
[1750931749801,1.48473,2466.2,2466.1,10.81436]
[1750931753902,1.48473,2466.2,2466.1,10.0038]
[1750931754903,1.48473,2466.2,2466.1,10.81436]
[1750931759402,1.48473,2466.2,2466.1,3.2078]
[1750931759704,0.81065,2466.0,2465.9,7.60659]
[1750931760095,2.23165,2466.0,2465.9,7.60659]
[1750931760301,2.23165,2466.0,2465.9,0.81059]
[1750931761110,0.6742,2466.2,2466.0,0.8106]
[1750931761301,0.81057,2466.1,2466.0,0.8106]
[1750931761501,1.48476,2466.2,2466.1,0.81056]
[1750931763011,0.6742,2466.2,2465.8,2.02661]
[1750931763310,0.8106,2466.1,2466.0,0.81056]
[1750931764007,1.48475,2466.2,2466.1,0.81056]
[1750931764399,2.51614578,2466.2,2466.1,0.81056]
[1750931764802,2.51614578,2466.2,2465.9,2.02653]
[1750931764803,4.31008553,2466.2,2465.8,1.3052]
[1750931765006,0.81063,2466.0,2465.9,7.60762]
[1750931765304,1.84202578,2466.0,2465.9,7.60762]
[1750931767798,1.03139578,2466.0,2465.9,7.60762]
[1750931768403,1.84429276,2466.1,2466.0,0.8106]
[1750931769613,1.84429276,2466.1,2466.0,7.5876]
[1750931770609,0.81064,2466.0,2465.9,7.5876]
[1750931770814,1.84436276,2466.0,2465.9,0.8106]
[1750931771010,2.50146276,2466.0,2465.9,6.777]
[1750931771212,0.81066,2465.8,2465.7,1.49366]
[1750931771416,0.81066,2465.8,2465.7,8.27066]
[1750931771714,1.84438276,2465.8,2465.7,8.27066]
[1750931771913,1.84438276,2465.8,2465.7,1.49366]
[1750931772107,1.84438276,2465.8,2465.7,8.27066]
[1750931775917,1.84438276,2465.8,2465.7,1.49366]
[1750931776117,1.84438276,2465.8,2465.7,8.27066]
[1750931782225,1.84438276,2465.8,2465.7,1.49366]
[1750931784922,2.02674,2465.7,2465.3,0.8108]
[1750931785119,0.81086,2465.3,2465.2,7.58782]
[1750931785318,1.84458276,2465.3,2465.2,7.58782]
[1750931786030,1.84458276,2465.3,2465.2,7.58786]
[1750931786225,0.81089,2465.1,2465.0,3.2078]
[1750931786520,6.84601251,2465.1,2464.5,7.4609]
[1750931786727,0.81097,2464.9,2464.8,0.81096]
[1750931787021,1.03372276,2464.9,2464.8,0.81096]
[1750931787225,1.03372276,2464.9,2464.8,4.01876]
[1750931787525,0.81085,2465.3,2465.2,0.81083]
[1750931787725,1.84353635,2465.3,2465.2,0.81083]
[1750931788625,1.03268635,2465.3,2465.2,0.81083]
[1750931788828,1.03268635,2465.3,2465.2,2.18353]
[1750931789036,1.03268635,2465.3,2465.2,2.89743]
[1750931789423,3.2078,2465.7,2465.6,0.81073]
[1750931789923,0.81062,2466.0,2465.9,0.81063]
[1750931791521,0.81067,2465.9,2465.8,0.81064]
[1750931791726,0.81071,2465.8,2465.7,0.81068]
[1750931792127,0.81072,2465.7,2465.6,7.58869]
[1750931792435,0.81068,2465.8,2465.7,0.81066]
[1750931792634,2.60448975,2465.8,2465.2,5.23492]
[1750931792829,1.4671,2465.7,2465.6,0.81073]
[1750931795728,2.02683,2465.6,2465.2,3.2078]
[1750931795933,0.81083,2465.4,2465.3,0.8108]
[1750931796333,0.81083,2465.3,2465.2,0.81084]
[1750931796534,1.50573,2465.3,2465.2,0.81084]
[1750931797432,0.81086,2465.2,2465.1,7.58888]
[1750931797634,0.81086,2465.2,2465.1,0.81088]
[1750931797933,0.81086,2465.2,2465.1,7.58888]
[1750931798132,0.81086,2465.2,2465.1,6.778]
[1750931799130,0.81086,2465.2,2465.1,0.81089]
[1750931799938,1.50575,2465.3,2465.2,0.81086]
[1750931800932,0.81072,2465.7,2465.6,0.81069]
[1750931801138,0.81068,2465.8,2465.7,0.81067]
[1750931801538,0.81072,2465.7,2465.6,0.81069]
[1750931801732,2.49227271,2465.7,2465.6,0.81069]
[1750931804241,1.68155271,2465.7,2465.6,0.81069]
[1750931805238,1.02765271,2465.7,2465.6,0.81069]
[1750931805934,3.2078,2466.1,2466.0,0.8106]
[1750931806134,4.23613158,2466.1,2466.0,0.8106]
[1750931806543,1.02833158,2466.1,2466.0,0.8106]
[1750931807240,1.02833158,2466.1,2466.0,2.1784]
[1750931807740,1.02833158,2466.1,2466.0,2.8754]
[1750931809838,1.02833158,2466.1,2466.0,1.5076]
[1750931810832,1.83889158,2466.1,2466.0,0.8106]
[1750931812943,0.8106,2466.0,2465.9,0.6956]
[1750931813244,0.81063,2465.9,2465.8,0.81064]
[1750931813439,1.83896158,2465.9,2465.8,0.81064]
[1750931813640,0.81066,2465.8,2465.7,0.81069]
[1750931813840,1.83899158,2465.8,2465.7,0.81069]
[1750931814040,0.81069,2465.7,2465.6,0.8107]
[1750931815947,2.21037,2465.9,2465.8,0.81066]
[1750931816244,2.21037,2465.9,2465.5,10.03448975]
[1750931816245,0.81069,2465.8,2465.7,0.81067]
[1750931816444,2.21036,2465.9,2465.8,0.81066]
[1750931816637,3.23711016,2465.9,2465.8,0.81066]
[1750931819148,0.81071,2465.8,2465.7,0.81067]
[1750931819446,1.83746016,2465.8,2465.7,0.81067]
[1750931819648,0.81073,2465.7,2465.6,0.8107]
[1750931819843,0.81073,2465.7,2465.5,7.43]
[1750931819844,0.81073,2465.6,2465.5,8.24074]
[1750931820044,1.83748016,2465.6,2465.5,8.24074]
[1750931820246,2.49208016,2465.6,2465.5,1.48674]
[1750931820547,2.49208016,2465.6,2465.5,8.24074]
[1750931820748,0.81083,2465.4,2465.3,0.81078]
[1750931821050,0.81083,2465.4,2465.3,7.56478]
[1750931821351,1.83799762,2465.4,2465.3,7.56478]
[1750931821542,1.83799762,2465.4,2465.3,6.754]
[1750931822244,1.83799762,2465.4,2465.3,7.56483]
[1750931822547,1.83799762,2465.4,2465.3,6.754]
[1750931822936,1.83799762,2465.4,2465.3,7.56483]
[1750931823845,1.83799762,2465.4,2465.3,6.754]
[1750931824050,1.83799762,2465.4,2465.3,7.56483]
[1750931824243,1.83799762,2465.4,2465.3,6.754]
[1750931824851,0.81083,2465.3,2465.2,0.81085]
[1750931825151,0.81086,2465.2,2465.1,10.77367]
[1750931827050,0.81086,2465.2,2465.1,6.755]
[1750931827250,1.83917772,2465.2,2465.1,6.755]
[1750931827453,1.83917772,2465.2,2465.1,7.56589]
[1750931828854,1.83917772,2465.2,2465.1,0.81089]
[1750931829154,0.81102,2464.8,2464.7,0.81099]
[1750931829355,0.81099,2464.8,2464.7,0.6617]
[1750931829852,0.81099,2464.8,2464.7,1.47272]
[1750931831057,0.81099,2464.8,2464.7,0.6617]
[1750931831253,0.81099,2464.8,2464.7,1.47272]
[1750931831651,3.2078,2464.9,2464.8,0.81099]
[1750931832157,4.23485,2464.9,2464.8,0.81099]
[1750931832353,5.0455787,2464.9,2464.8,0.81099]
[1750931833257,4.01876,2464.9,2464.8,0.81099]
[1750931833659,5.04519634,2464.9,2464.8,0.81099]
[1750931833960,5.04519634,2464.9,2464.6,0.81102]
[1750931833961,0.81106,2464.7,2464.6,0.81102]
[1750931834157,0.81106,2464.6,2464.5,7.4184]
[1750931834352,1.48656,2464.6,2464.5,7.4184]
[1750931834549,0.81116,2464.4,2464.3,0.81112]
[1750931835558,0.81112,2464.5,2464.4,0.81109]
[1750931835949,0.81108,2464.6,2464.5,0.81109]
[1750931836752,0.81103,2464.7,2464.6,0.81102]
[1750931836958,0.81102,2464.8,2464.7,0.81099]
[1750931837160,1.83693486,2464.8,2464.7,0.81099]
[1750931837361,1.83682181,2464.8,2464.7,0.81099]
[1750931837557,3.2078,2464.9,2464.8,0.81099]
[1750931837956,3.2078,2464.9,2464.8,2.22499]
[1750931839366,5.93693,2465.6,2465.2,0.8108]
[1750931839559,0.81084,2465.3,2465.2,0.8108]
[1750931840257,1.83751079,2465.3,2465.2,0.8108]
[1750931840762,1.02667079,2465.3,2465.2,0.8108]
[1750931840959,3.2078,2465.6,2465.2,4.63161975]
[1750931841163,0.81072,2465.7,2465.6,0.81073]
[1750931841365,1.83784402,2465.7,2465.6,0.81073]
[1750931841774,1.02712402,2465.7,2465.6,0.81073]
[1750931841979,0.6681,2465.9,2465.6,4.63131975]
[1750931842276,3.9238,2466.2,2466.1,0.81056]
[1750931842475,5.76194016,2466.2,2466.1,0.81056]
[1750931843076,5.76194016,2466.2,2465.8,11.37012975]
[1750931843077,0.81058,2466.1,2466.0,0.81057]
[1750931843280,1.83819016,2466.1,2466.0,0.81057]
[1750931843477,0.81063,2466.0,2465.9,0.81062]
[1750931843785,1.83824016,2466.0,2465.9,0.81062]
[1750931843981,0.81063,2465.9,2465.8,7.54963]
[1750931844585,0.81063,2465.9,2465.8,6.739]
[1750931844779,2.60448975,2466.0,2465.7,3.2078]
[1750931844984,0.81069,2465.7,2465.6,0.81071]
[1750931845191,0.81073,2465.6,2465.5,8.25314]
[1750931845684,0.7163,2465.7,2465.6,0.81073]
[1750931845685,1.52701,2465.7,2465.6,0.81073]
[1750931845890,0.81071,2465.7,2465.6,0.81073]
[1750931847394,0.81073,2465.6,2465.5,8.25314]
[1750931847688,0.81073,2465.6,2465.5,0.7044]
[1750931847880,0.81071,2465.7,2465.5,0.7044]
[1750931848081,0.81071,2465.7,2465.6,0.81069]
[1750931848488,1.52694,2465.9,2465.8,0.81066]
[1750931848684,0.81058,2466.1,2465.7,7.83901975]
[1750931848989,0.81063,2465.9,2465.8,2.21684]
[1750931849190,0.81062,2466.0,2465.9,0.81062]
[1750931849487,1.83738081,2466.1,2466.0,0.8106]
[1750931849688,1.83738855,2466.1,2466.0,0.8106]
[1750931851492,1.02679855,2466.1,2466.0,0.8106]
[1750931854487,1.52051,2466.3,2466.2,0.81053]
[1750931854688,1.023775,2466.3,2466.2,0.81053]
[1750931854893,1.834275,2466.3,2466.2,0.81053]
[1750931855394,1.023775,2466.3,2466.2,0.81053]
[1750931855692,1.023775,2466.3,2466.2,7.54753]
[1750931855991,0.7222,2466.8,2466.7,0.81037]
[1750931856293,1.74558062,2466.8,2466.7,0.81037]
[1750931856687,2.1039,2467.0,2466.9,0.8103]
[1750931856892,2.5398133,2467.0,2466.9,0.8103]
[1750931857394,1.7295233,2467.0,2466.9,0.8103]
[1750931858096,2.5397933,2467.0,2466.9,0.8103]
[1750931858287,0.7068,2467.0,2466.9,0.8103]
[1750931858593,0.8103,2466.9,2466.8,1.52901]
[1750931859593,0.81032,2466.9,2466.8,0.8103]
[1750931859795,1.51708,2467.0,2466.9,0.8103]
[1750931861189,0.81033,2466.9,2466.8,0.81031]
[1750931861888,0.7068,2467.0,2466.8,0.81031]
[1750931862093,0.7068,2467.0,2466.9,0.8103]